fUSD/lending_fUSD_20241018
["ID","MTS","AMOUNT","RATE_DAILY","PERIOD"]
[340412132,1729221929571,11244.71833409,0.000101,2]
[340412133,1729221955585,3555.22195808,6.94e-05,2]
[340412134,1729222029137,-1052.62812005,0.00010403,2]
[340412135,1729222029159,-165.65819807,0.00010403,2]
[340412136,1729222029182,-535.19,0.0001048,2]
[340412137,1729222029205,-721.20455375,0.00010658,2]
[340412138,1729222029228,-446.39999929,0.00010758,2]
[340412139,1729222029250,-648.3381,0.00010758,2]
[340412140,1729222029271,-356.88812463,0.000108,2]
[340412141,1729222043217,181.64,0.00010182,2]
[340412142,1729222075486,15796.14277351,0.0001,2]
[340412149,1729222216925,250.0,0.00010104,2]
[340412150,1729222231124,163.17,0.00010104,2]
[340412153,1729222231790,-3622.0,0.0001074,2]
[340412154,1729222231799,-633.91053437,0.000108,2]
[340412155,1729222231808,-150.0,0.00010857,2]
[340412156,1729222231817,-161.28046835,0.00010858,2]
[340412159,1729222231826,-2797.11467983,0.00010858,2]
[340412162,1729222231837,-682.49820459,0.00010858,2]
[340412170,1729222231951,-2129.3218492,0.00010858,2]
[340412171,1729222231964,-413.1327668,0.00010858,2]
[340412172,1729222231975,-3478.80599958,0.00010858,2]
[340412173,1729222231985,-6453.9173,0.00010858,2]
[340412174,1729222231995,-47408.24150782,0.00010858,2]
[340412175,1729222232006,-986.37026485,0.00010858,2]
[340412176,1729222232020,-1571.87957387,0.00010858,2]
[340412177,1729222232118,-3281.11815459,0.00010858,2]
[340412178,1729222232129,-277.62159607,0.00010858,2]
[340412179,1729222233105,-2661.4245912,0.00010858,2]
[340412180,1729222238059,18540.71,0.00010269,2]
[340412181,1729222238115,-5012.244274,0.00010858,2]
[340412182,1729222238127,-19398.2222376,0.00010858,2]
[340412183,1729222238137,-948.1998,0.00010858,2]
[340412184,1729222238146,-248.2018,0.00010858,2]
[340412185,1729222238155,-204.01613735,0.000109,2]
[340412186,1729222238165,-184.115,0.00010926,2]
[340412187,1729222238175,-494.58179381,0.00010957,2]
[340412188,1729222238184,-500.0,0.00010958,2]
[340412189,1729222238193,-515.4598658,0.00010958,2]
[340412190,1729222238203,-500.0,0.00010958,2]
[340412191,1729222238212,-515.66269478,0.00010958,2]
[340412192,1729222238222,-357.77498538,0.00010958,2]
[340412193,1729222238231,-296.53687197,0.00010958,2]
[340412194,1729222238240,-500.0,0.00010958,2]
[340412195,1729222238251,-333.72889097,0.00010958,2]
[340412196,1729222238261,-500.0,0.00010958,2]
[340412197,1729222238270,-306.12496496,0.00010958,2]
[340412198,1729222238280,-530.83573315,0.00010958,2]
[340412199,1729222238289,-500.0,0.00010958,2]
[340412200,1729222238302,-543.83055782,0.00010958,2]
[340412201,1729222238311,-500.0,0.00010958,2]
[340412202,1729222238320,-189.99094886,0.00010958,2]
[340412203,1729222238330,-318.07869585,0.00010958,2]
[340412204,1729222238339,-500.0,0.00010958,2]
[340412205,1729222238350,-500.0,0.00010958,2]
[340412206,1729222238359,-500.0,0.00010958,2]
[340412207,1729222238369,-500.0,0.00010958,2]
[340412208,1729222238378,-500.0,0.00010958,2]
[340412209,1729222238388,-500.0,0.00010958,2]
[340412210,1729222238398,-500.0,0.00010958,2]
[340412211,1729222238407,-594.04936225,0.00010958,2]
[340412212,1729222238416,-500.0,0.00010958,2]
[340412213,1729222238426,-510.23764614,0.00010958,2]
[340412214,1729222238435,-500.0,0.00010958,2]
[340412215,1729222238444,-500.0,0.00010958,2]
[340412216,1729222238454,-500.0,0.00010958,2]
[340412217,1729222238463,-500.0,0.00010958,2]
[340412218,1729222238473,-338.15859542,0.00010958,2]
[340412220,1729222238482,-2000.0,0.00010958,2]
[340412222,1729222238492,-200.0,0.00010958,2]
[340412224,1729222238501,-500.0,0.00010958,2]
[340412225,1729222238510,-500.0,0.00010958,2]
[340412228,1729222238520,-500.0,0.00010958,2]
[340412229,1729222238530,-500.0,0.00010958,2]
[340412231,1729222238539,-500.0,0.00010958,2]
[340412233,1729222238550,-500.0,0.00010958,2]
[340412236,1729222238559,-526.89188376,0.00010958,2]
[340412238,1729222238569,-500.0,0.00010958,2]
[340412240,1729222238578,-500.0,0.00010958,2]
[340412242,1729222238588,-500.0,0.00010958,2]
[340412243,1729222238597,-500.0,0.00010958,2]
[340412245,1729222238607,-500.0,0.00010958,2]
[340412248,1729222238616,-500.0,0.00010958,2]
[340412250,1729222238626,-500.0,0.00010958,2]
[340412252,1729222238636,-500.0,0.00010958,2]
[340412254,1729222238645,-500.0,0.00010958,2]
[340412256,1729222238656,-219.46660756,0.00010958,2]
[340412258,1729222238665,-500.0,0.00010958,2]
[340412260,1729222238675,-500.0,0.00010958,2]
[340412262,1729222238684,-500.0,0.00010958,2]
[340412263,1729222238694,-500.0,0.00010958,2]
[340412265,1729222238705,-500.0,0.00010958,2]
[340412267,1729222238715,-500.0,0.00010958,2]
[340412269,1729222238724,-500.0,0.00010958,2]
[340412270,1729222238733,-633.64479303,0.00010958,2]
[340412271,1729222238742,-576.76917504,0.00010958,2]
[340412272,1729222238752,-500.0,0.00010958,2]
[340412273,1729222238761,-500.0,0.00010958,2]
[340412274,1729222238771,-500.0,0.00010958,2]
[340412275,1729222238782,-500.0,0.00010958,2]
[340412276,1729222238792,-500.0,0.00010958,2]
[340412277,1729222238801,-500.0,0.00010958,2]
[340412278,1729222238811,-500.0,0.00010958,2]
[340412279,1729222238820,-500.0,0.00010958,2]
[340412280,1729222238829,-500.0,0.00010958,2]
[340412281,1729222238839,-500.0,0.00010958,2]
[340412282,1729222238848,-500.0,0.00010958,2]
[340412283,1729222238858,-500.0,0.00010958,2]
[340412284,1729222238867,-500.0,0.00010958,2]
[340412285,1729222238877,-500.0,0.00010958,2]
[340412286,1729222238887,-500.0,0.00010958,2]
[340412287,1729222238896,-500.0,0.00010958,2]
[340412288,1729222238906,-500.0,0.00010958,2]
[340412289,1729222238915,-500.0,0.00010958,2]
[340412290,1729222238925,-500.0,0.00010958,2]
[340412291,1729222238935,-500.0,0.00010958,2]
[340412292,1729222238944,-511.49511978,0.00010958,2]
[340412293,1729222238954,-524.71423444,0.00010958,2]
[340412294,1729222238964,-500.0,0.00010958,2]
[340412295,1729222238974,-500.0,0.00010958,2]
[340412296,1729222238983,-500.0,0.00010958,2]
[340412297,1729222238992,-500.0,0.00010958,2]
[340412298,1729222239002,-500.0,0.00010958,2]
[340412299,1729222239011,-500.0,0.00010958,2]
[340412300,1729222239021,-500.0,0.00010958,2]
[340412301,1729222239033,-500.0,0.00010958,2]
[340412302,1729222239042,-500.0,0.00010958,2]
[340412303,1729222239052,-500.0,0.00010958,2]
[340412304,1729222239061,-500.0,0.00010958,2]
[340412305,1729222239071,-500.0,0.00010958,2]
[340412306,1729222239080,-500.0,0.00010958,2]
[340412307,1729222239090,-500.0,0.00010958,2]
[340412308,1729222239099,-500.0,0.00010958,2]
[340412309,1729222239108,-500.0,0.00010958,2]
[340412310,1729222239118,-500.0,0.00010958,2]
[340412311,1729222239127,-500.0,0.00010958,2]
[340412312,1729222239138,-500.0,0.00010958,2]
[340412313,1729222239147,-500.0,0.00010958,2]
[340412314,1729222239157,-281.03043667,0.00010958,2]
[340412331,1729222239937,-218.96956333,0.00010958,2]
[340412332,1729222239947,-321.78791274,0.00010958,2]
[340412333,1729222239959,-279.21344945,0.00010958,2]
[340412334,1729222239970,-500.0,0.00010958,2]
[340412335,1729222239979,-500.0,0.00010958,2]
[340412336,1729222239988,-500.0,0.00010958,2]
[340412337,1729222239998,-500.0,0.00010958,2]
[340412338,1729222240007,-500.0,0.00010958,2]
[340412339,1729222240017,-500.0,0.00010958,2]
[340412340,1729222240026,-500.0,0.00010958,2]
[340412341,1729222240037,-500.0,0.00010958,2]
[340412342,1729222240046,-500.0,0.00010958,2]
[340412343,1729222240055,-500.0,0.00010958,2]
[340412344,1729222240064,-500.0,0.00010958,2]
[340412345,1729222240074,-247.33655055,0.00010958,2]
[340412346,1729222240126,-252.66344945,0.00010958,2]
[340412347,1729222240135,-449.70139768,0.00010958,2]
[340412348,1729222240147,-50.29860232,0.00010958,2]
[340412349,1729222240156,-278.32138077,0.00010958,2]
[340412748,1729222246312,-218.35,0.00010416,2]
[340412749,1729222246323,-221.67861923,0.00010958,2]
[340412750,1729222246334,-500.0,0.00010958,2]
[340412751,1729222246346,-500.0,0.00010958,2]
[340412752,1729222246356,-500.0,0.00010958,2]
[340412753,1729222246369,-500.0,0.00010958,2]
[340412755,1729222246380,-500.0,0.00010958,2]
[340412757,1729222246390,-500.0,0.00010958,2]
[340412758,1729222246401,-500.0,0.00010958,2]
[340412759,1729222246412,-500.0,0.00010958,2]
[340412760,1729222246424,-500.0,0.00010958,2]
[340412761,1729222246434,-410.75454148,0.00010958,2]
[340412762,1729222246443,-500.0,0.00010958,2]
[340412763,1729222246454,-500.0,0.00010958,2]
[340412764,1729222246463,-500.0,0.00010958,2]
[340412765,1729222246472,-500.0,0.00010958,2]
[340412766,1729222246481,-500.0,0.00010958,2]
[340412767,1729222246490,-500.0,0.00010958,2]
[340412768,1729222246499,-500.0,0.00010958,2]
[340412769,1729222246508,-500.0,0.00010958,2]
[340412770,1729222246518,-500.0,0.00010958,2]
[340412771,1729222246527,-500.0,0.00010958,2]
[340412772,1729222246538,-500.0,0.00010958,2]
[340412773,1729222246548,-500.0,0.00010958,2]
[340412774,1729222246557,-500.0,0.00010958,2]
[340412775,1729222246567,-280.93445632,0.00010958,2]
[340412776,1729222246594,-219.06554368,0.00010958,2]
[340412777,1729222246604,-586.5327249,0.00010958,2]
[340412778,1729222246613,-500.0,0.00010958,2]
[340412779,1729222246623,-431.30718692,0.00010958,2]
[340412780,1729222246633,-500.0,0.00010958,2]
[340412781,1729222246643,-500.0,0.00010958,2]
[340412782,1729222246652,-500.0,0.00010958,2]
[340412783,1729222246662,-350.7992445,0.00010958,2]
[340412784,1729222246678,-149.2007555,0.00010958,2]
[340412785,1729222246687,-500.0,0.00010958,2]
[340412786,1729222246696,-500.0,0.00010958,2]
[340412787,1729222246706,-401.1992445,0.00010958,2]
[340412788,1729222453059,524.6,8.277e-05,2]
[340412789,1729222488352,1000.0,0.00010153,2]
[340412790,1729222532165,400.0,0.000103,3]
[340412791,1729222534259,800.0,0.000104,3]
[340412792,1729222767492,250.0,9.975e-05,2]
[340412793,1729222791139,218.35,9.986e-05,2]
[340412794,1729222991198,250.0,0.00010018,2]
[340412795,1729223000268,498.37,8.219e-05,2]
[340412796,1729223028758,200.0,9.998e-05,2]
[340412797,1729223178994,244.09,0.00010052,2]
[340412798,1729223233140,-498.37,0.00010478,2]
[340412799,1729223233163,-150.80774215,0.00010478,2]
[340412800,1729223233182,-1158.4109,0.000106,2]
[340412801,1729223233201,-150.0,0.00010685,2]
[340412802,1729223233222,-596.63003188,0.000107,2]
[340412803,1729223233540,300.0,0.000103,3]
[340412804,1729223235634,700.0,0.000104,3]
[340412805,1729223237753,1000.0,0.000105,3]
[340412806,1729223397749,550.0,0.0001,2]
[340412810,1729223424657,250.0,0.00010007,2]
[340412813,1729223431909,-402.81830294,0.00010478,2]
[340412814,1729223431918,-1400.0,0.000106,3]
[340412815,1729223431928,-159.24996812,0.000107,2]
[340412816,1729223431938,-848.34,0.000107,2]
[340412817,1729223431948,-1800.0,0.000107,3]
[340412818,1729223431958,-693.504,0.000107,2]
[340412819,1729223431969,-150.0,0.000108,2]
[340412820,1729223431978,-300.0,0.000108,3]
[340412821,1729223431989,-150.0,0.000108,2]
[340412822,1729223432004,-756.07,0.000108,2]
[340412823,1729223432014,-756.07,0.000108,2]
[340412824,1729223432025,-754.33,0.000108,2]
[340412825,1729223432035,-209.43832454,0.00010858,2]
[340412826,1729223432045,-174.58720672,0.00010858,2]
[340412827,1729223432054,-156.33009605,0.00010858,2]
[340412828,1729223432064,-610.72254976,0.00010858,2]
[340412829,1729223432076,-6691.3791,0.00010858,2]
[340412830,1729223432085,-1000.0,0.00010858,2]
[340412831,1729223432096,-159.9109,0.00010858,2]
[340412832,1729223432107,-214.9063,0.00010858,2]
[340412833,1729223432117,-300.0,0.000109,3]
[340412834,1729223432126,-1009.0,0.000109,2]
[340412835,1729223432135,-48585.48806705,0.00010951,2]
[340412836,1729223432165,-7703.13545526,0.00010951,2]
[340412837,1729223432176,-10768.15411065,0.00010951,2]
[340412838,1729223432206,-7159.90453364,0.00010951,2]
[340412839,1729223432215,-499.99,0.00010951,2]
[340412840,1729223432225,-4655.28951701,0.00010951,2]
[340412841,1729223432237,-1440.43885463,0.00010951,2]
[340412842,1729223432249,-3396.7,0.00010951,2]
[340412843,1729223432262,-448.38866032,0.00010951,2]
[340412844,1729223432274,-1396.35356278,0.00010951,2]
[340412845,1729223432310,-2629.80052806,0.00010951,2]
[340412846,1729223432320,-1007.87819412,0.00010957,2]
[340412847,1729223432329,-62.32127782,0.00010957,2]
[340412848,1729223432342,-184.96961909,0.00010957,2]
[340412850,1729223432351,-184.115,0.00010957,2]
[340412852,1729223432362,-150.0,0.00010957,2]
[340412853,1729223432373,-516.44311216,0.00010958,2]
[340412854,1729223432383,-500.0,0.00010958,2]
[340412855,1729223432394,-500.0,0.00010958,2]
[340412856,1729223432404,-500.0,0.00010958,2]
[340412857,1729223432415,-500.0,0.00010958,2]
[340412858,1729223432424,-500.0,0.00010958,2]
[340412859,1729223432435,-500.0,0.00010958,2]
[340412860,1729223432445,-500.0,0.00010958,2]
[340412861,1729223432455,-500.0,0.00010958,2]
[340412862,1729223432466,-500.0,0.00010958,2]
[340412863,1729223432476,-500.0,0.00010958,2]
[340412864,1729223432486,-590.34404821,0.00010958,2]
[340412865,1729223432496,-514.40189366,0.00010958,2]
[340412866,1729223432506,-8.4759602,0.00010958,2]
[340412867,1729223432528,-420.98804803,0.00010958,2]
[340412868,1729223432539,-116.73293386,0.00010958,2]
[340412869,1729223432549,-145.97365877,0.00010958,2]
[340412870,1729223432574,-354.02634123,0.00010958,2]
[340412871,1729223432584,-33.14836196,0.00010958,2]
[340412872,1729223432597,-466.85163804,0.00010958,2]
[340412873,1729223432607,-572.44445888,0.00010958,2]
[340412874,1729223432617,-500.0,0.00010958,2]
[340412875,1729223432627,-500.0,0.00010958,2]
[340412876,1729223432636,-417.40390308,0.00010958,2]
[340412877,1729223432651,-82.59609692,0.00010958,2]
[340412878,1729223432660,-500.0,0.00010958,2]
[340412879,1729223432669,-552.81853336,0.00010958,2]
[340412880,1729223432680,-512.25711356,0.00010958,2]
[340412881,1729223432690,-500.0,0.00010958,2]
[340412882,1729223432699,-48.05833638,0.00010958,2]
[340412883,1729223432714,-451.94166362,0.00010958,2]
[340412884,1729223432724,-500.0,0.00010958,2]
[340412885,1729223432733,-377.34236411,0.00010958,2]
[340412893,1729223438141,-150.0,0.00010947,2]
[340412894,1729223438152,-122.65763589,0.00010958,2]
[340412895,1729223438162,-560.89963414,0.00010958,2]
[340412896,1729223438171,-500.0,0.00010958,2]
[340412897,1729223438181,-500.0,0.00010958,2]
[340412898,1729223438190,-500.0,0.00010958,2]
[340412899,1729223438199,-500.0,0.00010958,2]
[340412900,1729223438209,-500.0,0.00010958,2]
[340412901,1729223438218,-500.0,0.00010958,2]
[340412902,1729223438227,-500.0,0.00010958,2]
[340412903,1729223438237,-500.0,0.00010958,2]
[340412904,1729223438246,-500.0,0.00010958,2]
[340412905,1729223438255,-500.0,0.00010958,2]
[340412906,1729223438265,-500.0,0.00010958,2]
[340412907,1729223438273,-500.0,0.00010958,2]
[340412908,1729223438283,-500.0,0.00010958,2]
[340412909,1729223438292,-500.0,0.00010958,2]
[340412910,1729223438302,-575.42973142,0.00010958,2]
[340412911,1729223438311,-500.0,0.00010958,2]
[340412912,1729223438321,-500.0,0.00010958,2]
[340412913,1729223438331,-500.0,0.00010958,2]
[340412914,1729223438342,-500.0,0.00010958,2]
[340412915,1729223438354,-500.0,0.00010958,2]
[340412916,1729223438364,-500.0,0.00010958,2]
[340412917,1729223438373,-500.0,0.00010958,2]
[340412918,1729223438383,-500.0,0.00010958,2]
[340412919,1729223438392,-500.0,0.00010958,2]
[340412920,1729223438402,-500.0,0.00010958,2]
[340412921,1729223438412,-500.0,0.00010958,2]
[340412922,1729223438422,-500.0,0.00010958,2]
[340412923,1729223438433,-500.0,0.00010958,2]
[340412924,1729223438442,-500.0,0.00010958,2]
[340412925,1729223438453,-500.0,0.00010958,2]
[340412926,1729223438462,-500.0,0.00010958,2]
[340412927,1729223438472,-500.0,0.00010958,2]
[340412928,1729223438481,-500.0,0.00010958,2]
[340412929,1729223438491,-500.0,0.00010958,2]
[340412930,1729223438500,-500.0,0.00010958,2]
[340412931,1729223438510,-500.0,0.00010958,2]
[340412932,1729223438519,-500.0,0.00010958,2]
[340412933,1729223438529,-500.0,0.00010958,2]
[340412934,1729223438539,-500.0,0.00010958,2]
[340412935,1729223438549,-500.0,0.00010958,2]
[340412936,1729223438559,-500.0,0.00010958,2]
[340412937,1729223438569,-500.0,0.00010958,2]
[340412938,1729223438578,-500.0,0.00010958,2]
[340412939,1729223438588,-500.0,0.00010958,2]
[340412940,1729223438599,-500.0,0.00010958,2]
[340412941,1729223438609,-500.0,0.00010958,2]
[340412942,1729223438619,-209.51425026,0.00010958,2]
[340412943,1729223438629,-500.0,0.00010958,2]
[340412944,1729223438638,-282.23863959,0.00010958,2]
[340412945,1729223438648,-500.0,0.00010958,2]
[340412946,1729223438657,-500.0,0.00010958,2]
[340412947,1729223438667,-500.0,0.00010958,2]
[340412948,1729223438676,-500.0,0.00010958,2]
[340412949,1729223438685,-500.0,0.00010958,2]
[340412950,1729223438694,-500.0,0.00010958,2]
[340412951,1729223438703,-500.0,0.00010958,2]
[340412952,1729223438713,-500.0,0.00010958,2]
[340412953,1729223438722,-353.28457201,0.00010958,2]
[340412954,1729223438733,-500.0,0.00010958,2]
[340412955,1729223438742,-500.0,0.00010958,2]
[340412956,1729223438752,-500.0,0.00010958,2]
[340412957,1729223438761,-500.0,0.00010958,2]
[340412958,1729223438770,-500.0,0.00010958,2]
[340412959,1729223438780,-500.0,0.00010958,2]
[340412960,1729223438790,-632.38728246,0.00010958,2]
[340412961,1729223438799,-500.0,0.00010958,2]
[340412962,1729223438809,-500.0,0.00010958,2]
[340412963,1729223438818,-500.0,0.00010958,2]
[340412964,1729223438828,-500.0,0.00010958,2]
[340412965,1729223438837,-500.0,0.00010958,2]
[340412966,1729223438848,-500.0,0.00010958,2]
[340412967,1729223438859,-500.0,0.00010958,2]
[340412968,1729223438868,-500.0,0.00010958,2]
[340412969,1729223438878,-500.0,0.00010958,2]
[340412970,1729223438887,-500.0,0.00010958,2]
[340412971,1729223438896,-500.0,0.00010958,2]
[340412972,1729223438906,-500.0,0.00010958,2]
[340412973,1729223438915,-500.0,0.00010958,2]
[340412974,1729223438925,-500.0,0.00010958,2]
[340412975,1729223438934,-500.0,0.00010958,2]
[340412976,1729223438943,-500.0,0.00010958,2]
[340412977,1729223438953,-500.0,0.00010958,2]
[340412978,1729223438963,-500.0,0.00010958,2]
[340412979,1729223438972,-500.0,0.00010958,2]
[340412980,1729223438983,-259.528042,0.00010958,2]
[340412981,1729223438992,-500.0,0.00010958,2]
[340412982,1729223439006,-500.0,0.00010958,2]
[340412983,1729223439016,-396.56048962,0.00010958,2]
[340412984,1729223439025,-283.8639964,0.00010958,2]
[340412985,1729223439035,-530.2009866,0.00010958,2]
[340412986,1729223439046,-500.0,0.00010958,2]
[340412987,1729223439055,-500.0,0.00010958,2]
[340412988,1729223439065,-500.0,0.00010958,2]
[340412989,1729223439075,-500.0,0.00010958,2]
[340412990,1729223439084,-500.0,0.00010958,2]
[340412991,1729223439093,-500.0,0.00010958,2]
[340412992,1729223439102,-500.0,0.00010958,2]
[340412993,1729223439112,-500.0,0.00010958,2]
[340412994,1729223439122,-500.0,0.00010958,2]
[340412995,1729223439132,-500.0,0.00010958,2]
[340412996,1729223439141,-500.0,0.00010958,2]
[340412997,1729223439151,-500.0,0.00010958,2]
[340412998,1729223439161,-500.0,0.00010958,2]
[340412999,1729223439170,-500.0,0.00010958,2]
[340413000,1729223439180,-500.0,0.00010958,2]
[340413001,1729223439190,-500.0,0.00010958,2]
[340413002,1729223439200,-500.0,0.00010958,2]
[340413003,1729223439209,-500.0,0.00010958,2]
[340413004,1729223439219,-500.0,0.00010958,2]
[340413005,1729223439228,-500.0,0.00010958,2]
[340413006,1729223439238,-413.32129745,0.00010958,2]
[340413007,1729223439248,-568.82262777,0.00010958,2]
[340413008,1729223439258,-500.0,0.00010958,2]
[340413009,1729223439267,-500.0,0.00010958,2]
[340413010,1729223439277,-488.32335989,0.00010958,2]
[340413011,1729223439286,-500.0,0.00010958,2]
[340413012,1729223439296,-500.0,0.00010958,2]
[340413013,1729223439306,-500.0,0.00010958,2]
[340413014,1729223439315,-500.0,0.00010958,2]
[340413015,1729223439325,-500.0,0.00010958,2]
[340413016,1729223439334,-333.7465785,0.00010958,2]
[340413017,1729223439882,-247.2908969,0.00010957,2]
[340413018,1729223439892,-607.4134215,0.00010958,2]
[340413019,1729223439901,-185.26157819,0.00010958,2]
[340413020,1729223439913,-64.15268869,0.00010958,2]
[340413021,1729223439923,-837.00412059,0.00010958,2]
[340413022,1729223439935,-104.15587941,0.00010958,2]
[340413023,1729223439944,-418.16300502,0.00010958,2]
[340413024,1729223439994,-522.99699498,0.00010958,2]
[340413025,1729223440008,-563.34971167,0.00010958,2]
[340413154,1729223442915,-361.01292754,0.00010858,2]
[340413155,1729223443052,-8.95547246,0.00010858,2]
[340413156,1729223443062,-377.81028833,0.00010958,2]
[340413157,1729223443071,-941.16,0.00010958,2]
[340413158,1729223443081,-941.16,0.00010958,2]
[340413159,1729223443091,-941.16,0.00010958,2]
[340413160,1729223443103,-941.16,0.00010958,2]
[340413161,1729223443112,-511.67618706,0.00010958,2]
[340413162,1729223443122,-941.16,0.00010958,2]
[340413163,1729223443132,-500.0,0.00010958,2]
[340413164,1729223443141,-941.16,0.00010958,2]
[340413165,1729223443151,-941.16,0.00010958,2]
[340413166,1729223443160,-850.27387166,0.00010958,2]
[340413167,1729223443179,-90.88612834,0.00010958,2]
[340413168,1729223443188,-239.61387166,0.00010958,2]
[340413169,1729223443200,-701.54612834,0.00010958,2]
[340413170,1729223443210,-941.16,0.00010958,2]
[340413171,1729223443220,-941.16,0.00010958,2]
[340413172,1729223443230,-500.0,0.00010958,2]
[340413173,1729223443239,-941.16,0.00010958,2]
[340413174,1729223443249,-500.0,0.00010958,2]
[340413175,1729223443259,-500.0,0.00010958,2]
[340413176,1729223443268,-941.16,0.00010958,2]
[340413177,1729223443278,-500.0,0.00010958,2]
[340413178,1729223443287,-500.0,0.00010958,2]
[340413179,1729223443297,-941.16,0.00010958,2]
[340413180,1729223443307,-552.18962613,0.00010958,2]
[340413181,1729223443316,-941.16,0.00010958,2]
[340413182,1729223443326,-500.0,0.00010958,2]
[340413183,1729223443336,-941.16,0.00010958,2]
[340413184,1729223443345,-540.07177589,0.00010958,2]
[340413185,1729223443356,-500.0,0.00010958,2]
[340413186,1729223443365,-941.16,0.00010958,2]
[340413187,1729223443375,-500.0,0.00010958,2]
[340413188,1729223443384,-941.16,0.00010958,2]
[340413189,1729223443394,-560.54080273,0.00010958,2]
[340413190,1729223443403,-896.96841368,0.00010958,2]
[340413192,1729223443430,-44.19158632,0.00010958,2]
[340413193,1729223443440,-941.30967006,0.00010958,2]
[340413194,1729223443449,-500.0,0.00010958,2]
[340413195,1729223443459,-500.0,0.00010958,2]
[340413196,1729223443468,-500.0,0.00010958,2]
[340413197,1729223443477,-500.0,0.00010958,2]
[340413198,1729223443487,-500.0,0.00010958,2]
[340413199,1729223443496,-500.0,0.00010958,2]
[340413200,1729223443505,-541.82453935,0.00010958,2]
[340413201,1729223443517,-500.0,0.00010958,2]
[340413202,1729223443527,-561.56005256,0.00010958,2]
[340413203,1729223443536,-500.0,0.00010958,2]
[340413204,1729223443545,-500.0,0.00010958,2]
[340413205,1729223443555,-500.0,0.00010958,2]
[340413206,1729223443565,-636.55462194,0.00010958,2]
[340413207,1729223443574,-500.0,0.00010958,2]
[340413208,1729223443583,-500.0,0.00010958,2]
[340413209,1729223443593,-500.0,0.00010958,2]
[340413210,1729223443603,-355.80297969,0.00010958,2]
[340413211,1729223443613,-731.78,0.00010958,2]
[340413212,1729223443623,-484.27527232,0.00010958,2]
[340413213,1729223443681,-247.50472768,0.00010958,2]
[340413214,1729223443690,-731.78,0.00010958,2]
[340413215,1729223443699,-731.78,0.00010958,2]
[340413216,1729223443709,-731.78,0.00010958,2]
[340413217,1729223443718,-731.78,0.00010958,2]
[340413218,1729223443728,-731.78,0.00010958,2]
[340413219,1729223443737,-731.78,0.00010958,2]
[340413220,1729223443746,-500.0,0.00010958,2]
[340413221,1729223443756,-731.78,0.00010958,2]
[340413222,1729223443766,-315.78640729,0.00010958,2]
[340413223,1729223443775,-731.78,0.00010958,2]
[340413224,1729223443785,-731.78,0.00010958,2]
[340413225,1729223443795,-500.0,0.00010958,2]
[340413226,1729223443804,-500.0,0.00010958,2]
[340413227,1729223443814,-500.0,0.00010958,2]
[340413228,1729223443824,-500.0,0.00010958,2]
[340413229,1729223443833,-500.0,0.00010958,2]
[340413230,1729223443843,-731.78,0.00010958,2]
[340413231,1729223443853,-500.0,0.00010958,2]
[340413232,1729223443863,-731.78,0.00010958,2]
[340413233,1729223443872,-500.0,0.00010958,2]
[340413234,1729223443882,-731.78,0.00010958,2]